Workbook

Sheet Input Senarai Gaji
B1: KALKULATOR SENARAI GAJI | K1: TEMPOH TAMAT: | L1: 41372 | N1: NAMA SYARIKAT: | P1: ADVENTURE WORKS
B3: ID | C3: Nama Pekerja | D3: Kerja Waktu Biasa | E3: Waktu Percutian | F3: Waktu Sakit | G3: Waktu Lebih Masa | H3: Kadar Lebih Masa | I3: Gaji Kasar | J3: Cukai dan Potongan | K3: Potongan Lain | L3: Gaji Bersih | N3: Upah Jam | O3: Status Cukai | P3: Elaun Persekutuan | Q3: Cukai Dalam Negeri | R3: Cukai Pendapatan Persekutuan | S3: Cukai Keselamatan Sosial | T3: Cukai Perubatan | U3: Jumlah Cukai Ditahan | V3: Potongan Insurans | W3: Potongan Biasa Lain | X3: Jumlah Potongan Biasa
B4: 1001 | C4: Tony Smith | D4: 50 | E4: 5 | F4: 1 | I4: =SUM(Employees[[#This Row],[Kerja Waktu Biasa]:[Waktu Sakit]])*Employees[[#This Row],[Upah Jam]]+Employees[[#This Row],[Waktu Lebih Masa]]*Employees[[#This Row],[Kadar Lebih Masa]] -> 560 | J4: =Employees[[#This Row],[Gaji Kasar]]*Employees[[#This Row],[Jumlah Cukai Ditahan]] + Employees[[#This Row],[Jumlah Potongan Biasa]] -> 273.08 | K4: 20 | L4: =Employees[[#This Row],[Gaji Kasar]]-Employees[[#This Row],[Cukai dan Potongan]]-Employees[[#This Row],[Potongan Lain]] -> 266.92 | N4: 10 | O4: 1 | P4: 4 | Q4: 0.023 | R4: 0.28 | S4: 0.063 | T4: 0.0145 | U4: =SUM(Employees[[#This Row],[Cukai Dalam Negeri]:[Cukai Perubatan]]) -> 0.3805 | V4: 20 | W4: 40 | X4: =SUM(Employees[[#This Row],[Potongan Insurans]:[Potongan Biasa Lain]]) -> 60
B5: 1002 | C5: David Jones | D5: 40 | I5: =SUM(Employees[[#This Row],[Kerja Waktu Biasa]:[Waktu Sakit]])*Employees[[#This Row],[Upah Jam]]+Employees[[#This Row],[Waktu Lebih Masa]]*Employees[[#This Row],[Kadar Lebih Masa]] -> 320 | J5: =Employees[[#This Row],[Gaji Kasar]]*Employees[[#This Row],[Jumlah Cukai Ditahan]] + Employees[[#This Row],[Jumlah Potongan Biasa]] -> 131.76 | L5: =Employees[[#This Row],[Gaji Kasar]]-Employees[[#This Row],[Cukai dan Potongan]]-Employees[[#This Row],[Potongan Lain]] -> 188.24 | N5: 8 | O5: 1 | P5: 1 | Q5: 0.023 | R5: 0.28 | S5: 0.063 | T5: 0.0145 | U5: =SUM(Employees[[#This Row],[Cukai Dalam Negeri]:[Cukai Perubatan]]) -> 0.3805 | V5: 0 | W5: 10 | X5: =SUM(Employees[[#This Row],[Potongan Insurans]:[Potongan Biasa Lain]]) -> 10
B6: 1003 | C6: Denise Smith | D6: 35 | E6: 3 | I6: =SUM(Employees[[#This Row],[Kerja Waktu Biasa]:[Waktu Sakit]])*Employees[[#This Row],[Upah Jam]]+Employees[[#This Row],[Waktu Lebih Masa]]*Employees[[#This Row],[Kadar Lebih Masa]] -> 532 | J6: =Employees[[#This Row],[Gaji Kasar]]*Employees[[#This Row],[Jumlah Cukai Ditahan]] + Employees[[#This Row],[Jumlah Potongan Biasa]] -> 240.426 | L6: =Employees[[#This Row],[Gaji Kasar]]-Employees[[#This Row],[Cukai dan Potongan]]-Employees[[#This Row],[Potongan Lain]] -> 291.574 | N6: 14 | O6: 1 | P6: 3 | Q6: 0.023 | R6: 0.28 | S6: 0.063 | T6: 0.0145 | U6: =SUM(Employees[[#This Row],[Cukai Dalam Negeri]:[Cukai Perubatan]]) -> 0.3805 | V6: 18 | W6: 20 | X6: =SUM(Employees[[#This Row],[Potongan Insurans]:[Potongan Biasa Lain]]) -> 38
B7: 1008 | C7: Sebastien Motte | D7: 50 | E7: 5 | F7: 1 | I7: =SUM(Employees[[#This Row],[Kerja Waktu Biasa]:[Waktu Sakit]])*Employees[[#This Row],[Upah Jam]]+Employees[[#This Row],[Waktu Lebih Masa]]*Employees[[#This Row],[Kadar Lebih Masa]] -> 1120 | J7: =Employees[[#This Row],[Gaji Kasar]]*Employees[[#This Row],[Jumlah Cukai Ditahan]] + Employees[[#This Row],[Jumlah Potongan Biasa]] -> 441.16 | L7: =Employees[[#This Row],[Gaji Kasar]]-Employees[[#This Row],[Cukai dan Potongan]]-Employees[[#This Row],[Potongan Lain]] -> 678.84 | N7: 20 | O7: 1 | P7: 0 | Q7: 0.023 | R7: 0.28 | S7: 0.063 | T7: 0.0145 | U7: =SUM(Employees[[#This Row],[Cukai Dalam Negeri]:[Cukai Perubatan]]) -> 0.3805 | V7: 15 | X7: =SUM(Employees[[#This Row],[Potongan Insurans]:[Potongan Biasa Lain]]) -> 15
B8: 1011 | C8: Isabelle Scemla | D8: 40 | G8: 2 | H8: 15 | I8: =SUM(Employees[[#This Row],[Kerja Waktu Biasa]:[Waktu Sakit]])*Employees[[#This Row],[Upah Jam]]+Employees[[#This Row],[Waktu Lebih Masa]]*Employees[[#This Row],[Kadar Lebih Masa]] -> 430 | J8: =Employees[[#This Row],[Gaji Kasar]]*Employees[[#This Row],[Jumlah Cukai Ditahan]] + Employees[[#This Row],[Jumlah Potongan Biasa]] -> 223.615 | L8: =Employees[[#This Row],[Gaji Kasar]]-Employees[[#This Row],[Cukai dan Potongan]]-Employees[[#This Row],[Potongan Lain]] -> 206.385 | N8: 10 | O8: 1 | P8: 0 | Q8: 0.023 | R8: 0.28 | S8: 0.063 | T8: 0.0145 | U8: =SUM(Employees[[#This Row],[Cukai Dalam Negeri]:[Cukai Perubatan]]) -> 0.3805 | V8: 20 | W8: 40 | X8: =SUM(Employees[[#This Row],[Potongan Insurans]:[Potongan Biasa Lain]]) -> 60
B9: 1012 | C9: David Bristol | D9: 40 | E9: 5 | F9: 1 | I9: =SUM(Employees[[#This Row],[Kerja Waktu Biasa]:[Waktu Sakit]])*Employees[[#This Row],[Upah Jam]]+Employees[[#This Row],[Waktu Lebih Masa]]*Employees[[#This Row],[Kadar Lebih Masa]] -> 552 | J9: =Employees[[#This Row],[Gaji Kasar]]*Employees[[#This Row],[Jumlah Cukai Ditahan]] + Employees[[#This Row],[Jumlah Potongan Biasa]] -> 270.036 | L9: =Employees[[#This Row],[Gaji Kasar]]-Employees[[#This Row],[Cukai dan Potongan]]-Employees[[#This Row],[Potongan Lain]] -> 281.964 | N9: 12 | O9: 1 | P9: 4 | Q9: 0.023 | R9: 0.28 | S9: 0.063 | T9: 0.0145 | U9: =SUM(Employees[[#This Row],[Cukai Dalam Negeri]:[Cukai Perubatan]]) -> 0.3805 | V9: 20 | W9: 40 | X9: =SUM(Employees[[#This Row],[Potongan Insurans]:[Potongan Biasa Lain]]) -> 60
B10: 1025 | C10: Anne Weiler | D10: 36 | F10: 2 | G10: 1 | H10: 18 | I10: =SUM(Employees[[#This Row],[Kerja Waktu Biasa]:[Waktu Sakit]])*Employees[[#This Row],[Upah Jam]]+Employees[[#This Row],[Waktu Lebih Masa]]*Employees[[#This Row],[Kadar Lebih Masa]] -> 474 | J10: =Employees[[#This Row],[Gaji Kasar]]*Employees[[#This Row],[Jumlah Cukai Ditahan]] + Employees[[#This Row],[Jumlah Potongan Biasa]] -> 225.357 | K10: 25 | L10: =Employees[[#This Row],[Gaji Kasar]]-Employees[[#This Row],[Cukai dan Potongan]]-Employees[[#This Row],[Potongan Lain]] -> 223.643 | N10: 12 | O10: 1 | P10: 2 | Q10: 0.023 | R10: 0.28 | S10: 0.063 | T10: 0.0145 | U10: =SUM(Employees[[#This Row],[Cukai Dalam Negeri]:[Cukai Perubatan]]) -> 0.3805 | V10: 25 | W10: 20 | X10: =SUM(Employees[[#This Row],[Potongan Insurans]:[Potongan Biasa Lain]]) -> 45
B11: 1032 | C11: Luka Abrus | D11: 40 | E11: 5 | F11: 1 | I11: =SUM(Employees[[#This Row],[Kerja Waktu Biasa]:[Waktu Sakit]])*Employees[[#This Row],[Upah Jam]]+Employees[[#This Row],[Waktu Lebih Masa]]*Employees[[#This Row],[Kadar Lebih Masa]] -> 460 | J11: =Employees[[#This Row],[Gaji Kasar]]*Employees[[#This Row],[Jumlah Cukai Ditahan]] + Employees[[#This Row],[Jumlah Potongan Biasa]] -> 175.03 | K11: 50 | L11: =Employees[[#This Row],[Gaji Kasar]]-Employees[[#This Row],[Cukai dan Potongan]]-Employees[[#This Row],[Potongan Lain]] -> 234.97 | N11: 10 | O11: 1 | P11: 3 | Q11: 0.023 | R11: 0.28 | S11: 0.063 | T11: 0.0145 | U11: =SUM(Employees[[#This Row],[Cukai Dalam Negeri]:[Cukai Perubatan]]) -> 0.3805 | X11: =SUM(Employees[[#This Row],[Potongan Insurans]:[Potongan Biasa Lain]]) -> 0
B12: 1049 | C12: David Ludwig | D12: 40 | E12: 1 | I12: =SUM(Employees[[#This Row],[Kerja Waktu Biasa]:[Waktu Sakit]])*Employees[[#This Row],[Upah Jam]]+Employees[[#This Row],[Waktu Lebih Masa]]*Employees[[#This Row],[Kadar Lebih Masa]] -> 615 | J12: =Employees[[#This Row],[Gaji Kasar]]*Employees[[#This Row],[Jumlah Cukai Ditahan]] + Employees[[#This Row],[Jumlah Potongan Biasa]] -> 259.0075 | K12: 23 | L12: =Employees[[#This Row],[Gaji Kasar]]-Employees[[#This Row],[Cukai dan Potongan]]-Employees[[#This Row],[Potongan Lain]] -> 332.9925 | N12: 15 | O12: 1 | P12: 2 | Q12: 0.023 | R12: 0.28 | S12: 0.063 | T12: 0.0145 | U12: =SUM(Employees[[#This Row],[Cukai Dalam Negeri]:[Cukai Perubatan]]) -> 0.3805 | V12: 25 | X12: =SUM(Employees[[#This Row],[Potongan Insurans]:[Potongan Biasa Lain]]) -> 25
B13: Jumlah | C13: =SUBTOTAL(103,Employees[Nama Pekerja]) -> 9 | D13: =SUBTOTAL(109,Employees[Kerja Waktu Biasa]) -> 371 | E13: =SUBTOTAL(109,Employees[Waktu Percutian]) -> 24 | F13: =SUBTOTAL(109,Employees[Waktu Sakit]) -> 6 | G13: =SUBTOTAL(109,Employees[Waktu Lebih Masa]) -> 3 | I13: =SUBTOTAL(109,Employees[Gaji Kasar]) -> 5063 | J13: =SUBTOTAL(109,Employees[Cukai dan Potongan]) -> 2239.4715 | K13: =SUBTOTAL(109,Employees[Potongan Lain]) -> 118 | L13: =SUBTOTAL(109,Employees[Gaji Bersih]) -> 2705.5285 | V13: =SUBTOTAL(109,Employees[Potongan Insurans]) -> 143 | W13: =SUBTOTAL(109,Employees[Potongan Biasa Lain]) -> 170 | X13: =SUBTOTAL(109,Employees[Jumlah Potongan Biasa]) -> 313

Sheet templat_butiran (hidden)
C2: =CompanyName -> ADVENTURE WORKS
C3: TEMPOH | D3: =PeriodEnding -> 41372 | G3: NAMA | H3: =IFERROR(INDEX(Employees[Nama Pekerja],Stub),"") -> Tony Smith | K3: ID PEKERJA | L3: =IFERROR(INDEX(Employees[ID],Stub),"") -> 1001
C4: Status Cukai | E4: =IFERROR(INDEX(Employees[Status Cukai],Stub),"") -> 1 | G4: Elaun Persekutuan (Daripada W-4) | I4: =IFERROR(INDEX(Employees[Elaun Persekutuan],Stub),"") -> 4 | K4: Waktu Telah Bekerja | M4: =IFERROR(INDEX(Employees[Kerja Waktu Biasa],Stub),"") -> 50
C5: Kadar Jam | E5: =IFERROR(INDEX(Employees[Upah Jam],Stub),"") -> 10 | G5: Kadar Lebih Masa | I5: =IFERROR(INDEX(Employees[Kadar Lebih Masa],Stub),"") -> 0 | K5: Waktu Sakit | M5: =IFERROR(INDEX(Employees[Waktu Sakit],Stub),"") -> 1
C6: Cukai Keselamatan Sosial | E6: =IFERROR(INDEX(Employees[Cukai Keselamatan Sosial],Stub) * INDEX(Employees[Gaji Kasar],Stub),"") -> 35.28 | G6: Cukai Pendapatan Persekutuan | I6: =IFERROR(INDEX(Employees[Cukai Pendapatan Persekutuan],Stub) * INDEX(Employees[Gaji Kasar],Stub),"") -> 156.8 | K6: Waktu Percutian | M6: =IFERROR(INDEX(Employees[Waktu Percutian],Stub),"") -> 5
C7: Cukai Perubatan | E7: =IFERROR(INDEX(Employees[Cukai Perubatan],Stub) * INDEX(Employees[Gaji Kasar],Stub),"") -> 8.12 | G7: Cukai Dalam Negeri | I7: =IFERROR(INDEX(Employees[Cukai Dalam Negeri],Stub) * INDEX(Employees[Gaji Kasar],Stub),"") -> 12.88 | K7: Waktu Lebih Masa | M7: =IFERROR(INDEX(Employees[Waktu Lebih Masa],Stub),"") -> 0
C8: Potongan Insurans | E8: =IFERROR(INDEX(Employees[Potongan Insurans],Stub),"") -> 20 | G8: Potongan Biasa Lain | I8: =IFERROR(INDEX(Employees[Potongan Biasa Lain],Stub),"") -> 40 | K8: Gaji Kasar | M8: =IFERROR(INDEX(Employees[Gaji Kasar],Stub),"") -> 560
C9: Jumlah Cukai dan | E9: =IFERROR(INDEX(Employees[Cukai dan Potongan],Stub),"") -> 273.08 | G9: Potongan Lain | I9: =IFERROR(INDEX(Employees[Potongan Lain],Stub),"") -> 20 | K9: Jumlah Cukai dan Potongan | M9: =IFERROR(INDEX(Employees[Cukai dan Potongan],Stub) + INDEX(Employees[Potongan Lain],Stub),"") -> 293.08
C10: Potongan Biasa
K11: GAJI BERSIH | M11: =IFERROR(INDEX(Employees[Gaji Bersih],Stub),"") -> 266.92
C14: =CompanyName -> ADVENTURE WORKS
C15: TEMPOH | D15: =PeriodEnding -> 41372 | G15: NAMA | H15: =IFERROR(INDEX(Employees[Nama Pekerja],Stub),"") -> David Jones | K15: ID PEKERJA | L15: =IFERROR(INDEX(Employees[ID],Stub),"") -> 1002
C16: Status Cukai | E16: =IFERROR(INDEX(Employees[Status Cukai],Stub),"") -> 1 | G16: Elaun Persekutuan (Daripada W-4) | I16: =IFERROR(INDEX(Employees[Elaun Persekutuan],Stub),"") -> 1 | K16: Waktu Telah Bekerja | M16: =IFERROR(INDEX(Employees[Kerja Waktu Biasa],Stub),"") -> 40
C17: Kadar Jam | E17: =IFERROR(INDEX(Employees[Upah Jam],Stub),"") -> 8 | G17: Kadar Lebih Masa | I17: =IFERROR(INDEX(Employees[Kadar Lebih Masa],Stub),"") -> 0 | K17: Waktu Sakit | M17: =IFERROR(INDEX(Employees[Waktu Sakit],Stub),"") -> 0
C18: Cukai Keselamatan Sosial | E18: =IFERROR(INDEX(Employees[Cukai Keselamatan Sosial],Stub) * INDEX(Employees[Gaji Kasar],Stub),"") -> 20.16 | G18: Cukai Pendapatan Persekutuan | I18: =IFERROR(INDEX(Employees[Cukai Pendapatan Persekutuan],Stub) * INDEX(Employees[Gaji Kasar],Stub),"") -> 89.6 | K18: Waktu Percutian | M18: =IFERROR(INDEX(Employees[Waktu Percutian],Stub),"") -> 0
C19: Cukai Perubatan | E19: =IFERROR(INDEX(Employees[Cukai Perubatan],Stub) * INDEX(Employees[Gaji Kasar],Stub),"") -> 4.64 | G19: Cukai Dalam Negeri | I19: =IFERROR(INDEX(Employees[Cukai Dalam Negeri],Stub) * INDEX(Employees[Gaji Kasar],Stub),"") -> 7.36 | K19: Waktu Lebih Masa | M19: =IFERROR(INDEX(Employees[Waktu Lebih Masa],Stub),"") -> 0
C20: Potongan Insurans | E20: =IFERROR(INDEX(Employees[Potongan Insurans],Stub),"") -> 0 | G20: Potongan Biasa Lain | I20: =IFERROR(INDEX(Employees[Potongan Biasa Lain],Stub),"") -> 10 | K20: Gaji Kasar | M20: =IFERROR(INDEX(Employees[Gaji Kasar],Stub),"") -> 320
C21: Jumlah Cukai dan | E21: =IFERROR(INDEX(Employees[Cukai dan Potongan],Stub),"") -> 131.76 | G21: Potongan Lain | I21: =IFERROR(INDEX(Employees[Potongan Lain],Stub),"") -> 0 | K21: Jumlah Cukai dan Potongan | M21: =IFERROR(INDEX(Employees[Cukai dan Potongan],Stub) + INDEX(Employees[Potongan Lain],Stub),"") -> 131.76
C22: Potongan Biasa
K23: GAJI BERSIH | M23: =IFERROR(INDEX(Employees[Gaji Bersih],Stub),"") -> 188.24
C26: =CompanyName -> ADVENTURE WORKS
C27: TEMPOH | D27: =PeriodEnding -> 41372 | G27: NAMA | H27: =IFERROR(INDEX(Employees[Nama Pekerja],Stub),"") -> Denise Smith | K27: ID PEKERJA | L27: =IFERROR(INDEX(Employees[ID],Stub),"") -> 1003
C28: Status Cukai | E28: =IFERROR(INDEX(Employees[Status Cukai],Stub),"") -> 1 | G28: Elaun Persekutuan (Daripada W-4) | I28: =IFERROR(INDEX(Employees[Elaun Persekutuan],Stub),"") -> 3 | K28: Waktu Telah Bekerja | M28: =IFERROR(INDEX(Employees[Kerja Waktu Biasa],Stub),"") -> 35
C29: Kadar Jam | E29: =IFERROR(INDEX(Employees[Upah Jam],Stub),"") -> 14 | G29: Kadar Lebih Masa | I29: =IFERROR(INDEX(Employees[Kadar Lebih Masa],Stub),"") -> 0 | K29: Waktu Sakit | M29: =IFERROR(INDEX(Employees[Waktu Sakit],Stub),"") -> 0
C30: Cukai Keselamatan Sosial | E30: =IFERROR(INDEX(Employees[Cukai Keselamatan Sosial],Stub) * INDEX(Employees[Gaji Kasar],Stub),"") -> 33.516 | G30: Cukai Pendapatan Persekutuan | I30: =IFERROR(INDEX(Employees[Cukai Pendapatan Persekutuan],Stub) * INDEX(Employees[Gaji Kasar],Stub),"") -> 148.96 | K30: Waktu Percutian | M30: =IFERROR(INDEX(Employees[Waktu Percutian],Stub),"") -> 3
C31: Cukai Perubatan | E31: =IFERROR(INDEX(Employees[Cukai Perubatan],Stub) * INDEX(Employees[Gaji Kasar],Stub),"") -> 7.714 | G31: Cukai Dalam Negeri | I31: =IFERROR(INDEX(Employees[Cukai Dalam Negeri],Stub) * INDEX(Employees[Gaji Kasar],Stub),"") -> 12.236 | K31: Waktu Lebih Masa | M31: =IFERROR(INDEX(Employees[Waktu Lebih Masa],Stub),"") -> 0
C32: Potongan Insurans | E32: =IFERROR(INDEX(Employees[Potongan Insurans],Stub),"") -> 18 | G32: Potongan Biasa Lain | I32: =IFERROR(INDEX(Employees[Potongan Biasa Lain],Stub),"") -> 20 | K32: Gaji Kasar | M32: =IFERROR(INDEX(Employees[Gaji Kasar],Stub),"") -> 532
C33: Jumlah Cukai dan | E33: =IFERROR(INDEX(Employees[Cukai dan Potongan],Stub),"") -> 240.426 | G33: Potongan Lain | I33: =IFERROR(INDEX(Employees[Potongan Lain],Stub),"") -> 0 | K33: Jumlah Cukai dan Potongan | M33: =IFERROR(INDEX(Employees[Cukai dan Potongan],Stub) + INDEX(Employees[Potongan Lain],Stub),"") -> 240.426
C34: Potongan Biasa
K35: GAJI BERSIH | M35: =IFERROR(INDEX(Employees[Gaji Bersih],Stub),"") -> 291.574
C38: =CompanyName -> ADVENTURE WORKS
C39: TEMPOH | D39: =PeriodEnding -> 41372 | G39: NAMA | H39: =IFERROR(INDEX(Employees[Nama Pekerja],Stub),"") -> Sebastien Motte | K39: ID PEKERJA | L39: =IFERROR(INDEX(Employees[ID],Stub),"") -> 1008
C40: Status Cukai | E40: =IFERROR(INDEX(Employees[Status Cukai],Stub),"") -> 1 | G40: Elaun Persekutuan (Daripada W-4) | I40: =IFERROR(INDEX(Employees[Elaun Persekutuan],Stub),"") -> 0 | K40: Waktu Telah Bekerja | M40: =IFERROR(INDEX(Employees[Kerja Waktu Biasa],Stub),"") -> 50
C41: Kadar Jam | E41: =IFERROR(INDEX(Employees[Upah Jam],Stub),"") -> 20 | G41: Kadar Lebih Masa | I41: =IFERROR(INDEX(Employees[Kadar Lebih Masa],Stub),"") -> 0 | K41: Waktu Sakit | M41: =IFERROR(INDEX(Employees[Waktu Sakit],Stub),"") -> 1
C42: Cukai Keselamatan Sosial | E42: =IFERROR(INDEX(Employees[Cukai Keselamatan Sosial],Stub) * INDEX(Employees[Gaji Kasar],Stub),"") -> 70.56 | G42: Cukai Pendapatan Persekutuan | I42: =IFERROR(INDEX(Employees[Cukai Pendapatan Persekutuan],Stub) * INDEX(Employees[Gaji Kasar],Stub),"") -> 313.6 | K42: Waktu Percutian | M42: =IFERROR(INDEX(Employees[Waktu Percutian],Stub),"") -> 5
C43: Cukai Perubatan | E43: =IFERROR(INDEX(Employees[Cukai Perubatan],Stub) * INDEX(Employees[Gaji Kasar],Stub),"") -> 16.24 | G43: Cukai Dalam Negeri | I43: =IFERROR(INDEX(Employees[Cukai Dalam Negeri],Stub) * INDEX(Employees[Gaji Kasar],Stub),"") -> 25.76 | K43: Waktu Lebih Masa | M43: =IFERROR(INDEX(Employees[Waktu Lebih Masa],Stub),"") -> 0
C44: Potongan Insurans | E44: =IFERROR(INDEX(Employees[Potongan Insurans],Stub),"") -> 15 | G44: Potongan Biasa Lain | I44: =IFERROR(INDEX(Employees[Potongan Biasa Lain],Stub),"") -> 0 | K44: Gaji Kasar | M44: =IFERROR(INDEX(Employees[Gaji Kasar],Stub),"") -> 1120
C45: Jumlah Cukai dan | E45: =IFERROR(INDEX(Employees[Cukai dan Potongan],Stub),"") -> 441.16 | G45: Potongan Lain | I45: =IFERROR(INDEX(Employees[Potongan Lain],Stub),"") -> 0 | K45: Jumlah Cukai dan Potongan | M45: =IFERROR(INDEX(Employees[Cukai dan Potongan],Stub) + INDEX(Employees[Potongan Lain],Stub),"") -> 441.16
C46: Potongan Biasa
K47: GAJI BERSIH | M47: =IFERROR(INDEX(Employees[Gaji Bersih],Stub),"") -> 678.84
